bitfinex-derivatives/quotes_BNBF0:USTF0_20250331
["timestamp","ask_amount","ask_price","bid_price","bid_amount"]
[1743460305720,0.30414315,604.92,603.55,0.33137271]
[1743460307722,0.28803774,604.93,603.55,0.33137271]
[1743460308125,0.33040921,605.31,603.55,0.33137271]
[1743460308325,0.28797696,604.92,603.55,0.33137271]
[1743460308722,0.33040921,605.31,603.55,0.33137271]
[1743460309024,0.28797696,604.91,603.55,0.33137271]
[1743460309520,0.33040921,605.31,603.55,0.33137271]
[1743460309725,0.28798649,604.9,603.55,0.33137271]
[1743460309924,0.33040921,605.31,603.55,0.33137271]
[1743460310121,0.30410787,605.3,603.55,0.33137271]
[1743460310324,0.28798888,604.89,603.55,0.33137271]
[1743460310524,0.33040921,605.31,603.55,0.33137271]
[1743460310825,0.28798888,604.88,603.55,0.33137271]
[1743460311227,0.33040921,605.31,603.55,0.33137271]
[1743460311426,0.28798649,604.87,603.55,0.33137271]
[1743460311926,0.33040921,605.31,603.55,0.33137271]
[1743460312228,0.28798649,604.86,603.55,0.33137271]
[1743460312429,0.33040921,605.31,603.55,0.33137271]
[1743460312623,0.28800556,604.85,603.55,0.33137271]
[1743460313023,0.33040921,605.31,603.55,0.33137271]
[1743460313330,0.28799603,604.84,603.55,0.33137271]
[1743460313624,0.33040921,605.31,603.55,0.33137271]
[1743460313830,0.28799722,604.83,603.55,0.33137271]
[1743460314233,0.33040921,605.31,603.55,0.33137271]
[1743460314528,0.28799603,604.82,603.55,0.33137271]
[1743460314725,0.33040921,605.31,603.55,0.33137271]
[1743460314922,0.30415236,605.3,603.55,0.33137271]
[1743460315228,0.28806993,604.81,603.55,0.33137271]
[1743460315427,0.33042012,605.29,603.55,0.33137271]
[1743460315630,0.28807112,604.8,603.55,0.33137271]
[1743460316024,0.33042012,605.29,603.55,0.33137271]
[1743460316226,0.28807351,604.79,603.55,0.33137271]
[1743460316629,0.33042012,605.29,603.55,0.33137271]
[1743460316826,0.28807351,604.78,603.55,0.33137271]
[1743460317324,0.33042012,605.29,603.55,0.33137271]
[1743460317528,0.28807351,604.77,603.55,0.33137271]
[1743460317927,0.33042012,605.29,603.55,0.33137271]
[1743460318123,0.28807351,604.76,603.55,0.33137271]
[1743460318625,0.33042012,605.29,603.55,0.33137271]
[1743460318831,0.28807351,604.75,603.55,0.33137271]
[1743460319032,0.33042012,605.29,603.55,0.33137271]
[1743460319228,0.3041545,605.28,603.55,0.33137271]
[1743460319532,0.2880747,604.74,603.55,0.33137271]
[1743460319831,0.33042558,605.28,603.55,0.33137271]
[1743460320030,0.28806993,604.73,603.55,0.33137271]
[1743460320232,0.33042558,605.28,603.55,0.33137271]
[1743460320531,0.28807112,604.72,603.55,0.33137271]
[1743460321034,0.33042558,605.28,603.55,0.33137271]
[1743460321234,0.28806993,604.71,603.55,0.33137271]
[1743460321429,0.33042558,605.28,603.55,0.33137271]
[1743460321635,0.30417394,605.27,603.55,0.33137271]
[1743460321935,0.28808424,604.7,603.55,0.33137271]
[1743460322136,0.3304365,605.26,603.55,0.33137271]
[1743460322435,0.28809497,604.69,603.55,0.33137271]
[1743460322630,0.3304365,605.26,603.55,0.33137271]
[1743460322832,0.30420907,605.25,603.55,0.33137271]
[1743460323131,0.28810332,604.68,603.55,0.33137271]
[1743460323333,0.33044742,605.24,603.55,0.33137271]
[1743460323629,0.28810451,604.67,603.55,0.33137271]
[1743460323833,0.33044742,605.24,603.55,0.33137271]
[1743460324030,0.30420986,605.23,603.55,0.33137271]
[1743460324238,0.28806755,604.66,603.55,0.33137271]
[1743460324436,0.33045834,605.22,603.55,0.33137271]
[1743460324736,0.28806874,604.65,603.55,0.33137271]
[1743460325130,0.33045834,605.22,603.55,0.33137271]
[1743460325435,0.28807351,604.64,603.55,0.33137271]
[1743460325635,0.33045834,605.22,603.55,0.33137271]
[1743460325834,0.30419856,605.21,603.55,0.33137271]
[1743460326034,0.28807351,604.63,603.55,0.33137271]
[1743460326235,0.33046926,605.2,603.55,0.33137271]
[1743460326429,0.30420046,605.19,603.55,0.33137271]
[1743460326634,0.2880747,604.62,603.55,0.33137271]
[1743460326835,0.33048018,605.18,603.55,0.33137271]
[1743460327135,0.28807351,604.61,603.55,0.33137271]
[1743460327531,0.33048018,605.18,603.55,0.33137271]
[1743460327735,0.28807351,604.6,603.55,0.33137271]
[1743460328133,0.33048018,605.18,603.55,0.33137271]
[1743460328338,0.28807351,604.59,603.55,0.33137271]
[1743460328837,0.33048018,605.18,603.55,0.33137271]
[1743460329037,0.28806755,604.58,603.55,0.33137271]
[1743460329339,0.33048018,605.18,603.55,0.33137271]
[1743460329537,0.28806874,604.57,603.55,0.33137271]
[1743460329938,0.33048018,605.18,603.55,0.33137271]
[1743460330138,0.28806755,604.56,603.55,0.33137271]
[1743460330532,0.33048018,605.18,603.55,0.33137271]
[1743460330736,0.28806397,604.55,603.55,0.33137271]
[1743460331035,0.33048018,605.18,603.55,0.33137271]
[1743460331237,0.3041994,605.17,603.55,0.33137271]
[1743460331535,0.28806516,604.54,603.55,0.33137271]
[1743460331842,0.33048018,605.18,603.55,0.33137271]
[1743460332034,0.28806397,604.53,603.55,0.33137271]
[1743460332232,0.33048018,605.18,603.55,0.33137271]
[1743460332434,0.30420003,605.17,603.55,0.33137271]
[1743460332638,0.28806159,604.52,603.55,0.33137271]
[1743460332835,0.33048564,605.17,603.55,0.33137271]
[1743460333033,0.30420666,605.16,603.55,0.33137271]
[1743460333235,0.28806159,604.51,603.55,0.33137271]
[1743460333431,0.33048564,605.17,603.55,0.33137271]
[1743460333637,0.30420133,605.16,603.55,0.33137271]
[1743460333935,0.28804132,604.5,603.55,0.33137271]
[1743460334239,0.812,604.49,603.55,0.33137271]
[1743460338643,0.28820353,604.48,603.55,0.33137271]
[1743460341140,0.812,604.49,603.55,0.33137271]
[1743460341643,0.28821189,604.48,603.55,0.33137271]
[1743460344249,0.812,604.49,603.55,0.33137271]
[1743460344447,0.28821547,604.47,603.55,0.33137271]
[1743460347245,0.33048564,605.17,603.55,0.33137271]
[1743460347442,0.28812717,604.46,603.55,0.33137271]
[1743460347948,0.33048564,605.17,603.55,0.33137271]
[1743460348139,0.2881236,604.45,603.55,0.33137271]
[1743460348339,0.33048564,605.17,603.55,0.33137271]
[1743460348547,0.902,604.45,603.55,0.33137271]
[1743460348848,1.19008782,604.45,603.55,0.33137271]
[1743460350243,0.902,604.45,603.55,0.33137271]
[1743460350649,1.1901558,604.45,603.55,0.33137271]
[1743460353351,0.902,604.45,603.55,0.33137271]
[1743460353550,1.19013672,604.45,603.55,0.33137271]
[1743460356056,0.902,604.45,603.55,0.33137271]
[1743460356353,0.2881558,604.44,603.55,0.33137271]
[1743460359359,0.902,604.45,603.55,0.33137271]
[1743460359751,0.28818444,604.43,603.55,0.33137271]
[1743460362158,0.902,604.45,603.55,0.33137271]
[1743460362553,0.28818205,604.44,603.55,0.33137271]
[1743460365254,0.902,604.45,603.55,0.33137271]
[1743460365459,0.28819398,604.43,603.55,0.33137271]
[1743460368158,0.902,604.45,603.55,0.33137271]
[1743460368355,0.30429067,604.44,603.55,0.33137271]
[1743460368662,0.59247272,604.44,603.55,0.33137271]
[1743460368855,0.28818205,604.44,603.55,0.33137271]
[1743460369961,0.30429575,604.43,603.55,0.33137271]
[1743460371367,0.30429575,604.42,603.55,0.33137271]
[1743460371665,0.30429575,604.41,603.55,0.33137271]
[1743460374572,0.902,604.45,603.55,0.33137271]
[1743460374573,0.59245632,604.4,603.55,0.33137271]
[1743460374872,0.30429575,604.39,603.55,0.33137271]
[1743460377477,0.28813672,604.38,603.55,0.33137271]
[1743460380273,0.902,604.45,603.55,0.33137271]
[1743460380575,0.28813672,604.38,603.55,0.33137271]
[1743460383172,0.902,604.45,603.55,0.33137271]
[1743460383378,0.30426462,604.44,603.55,0.33137271]
[1743460383578,0.28812002,604.38,603.55,0.33137271]
[1743460386085,3.60095246,604.99,603.55,0.33137271]
[1743460386285,0.30427126,604.98,603.55,0.33137271]
[1743460386586,0.30427126,604.97,603.55,0.33137271]
[1743460386786,0.30427126,604.96,603.55,0.33137271]
[1743460386981,0.30427126,604.95,603.55,0.33137271]
[1743460387186,0.30427126,604.94,603.55,0.33137271]
[1743460387383,0.30427126,604.93,603.55,0.33137271]
[1743460387588,0.30427126,604.92,603.55,0.33137271]
[1743460387786,0.30427126,604.91,603.55,0.33137271]
[1743460387988,0.30427126,604.9,603.55,0.33137271]
[1743460388182,0.30427126,604.89,603.55,0.33137271]
[1743460388387,0.30427126,604.88,603.55,0.33137271]
[1743460388588,0.30427126,604.87,603.55,0.33137271]
[1743460388889,0.30427126,604.86,603.55,0.33137271]
[1743460389089,0.30427126,604.85,603.55,0.33137271]
[1743460389290,0.30426519,604.84,603.55,0.33137271]
[1743460389490,0.30426519,604.83,603.55,0.33137271]
[1743460389689,0.30426519,604.82,603.55,0.33137271]
[1743460389886,0.30426519,604.81,603.55,0.33137271]
[1743460390087,0.30426519,604.8,603.55,0.33137271]
[1743460390283,0.30426519,604.79,603.55,0.33137271]
[1743460390488,0.30426519,604.78,603.55,0.33137271]
[1743460390691,0.30426519,604.77,603.55,0.33137271]
[1743460390882,0.30427126,604.76,603.55,0.33137271]
[1743460391088,0.30427126,604.75,603.55,0.33137271]
[1743460391286,0.30427126,604.74,603.55,0.33137271]
[1743460391489,0.30427126,604.73,603.55,0.33137271]
[1743460391689,0.30427126,604.72,603.55,0.33137271]
[1743460391887,0.30427126,604.71,603.55,0.33137271]
[1743460392091,0.30427126,604.84,603.55,0.33137271]
[1743460392389,0.28807589,604.7,603.55,0.33137271]
[1743460392586,0.30427071,604.69,603.55,0.33137271]
[1743460392993,0.30427071,604.86,603.55,0.33137271]
[1743460393292,0.2880902,604.68,603.55,0.33137271]
[1743460393492,0.30427071,604.67,603.55,0.33137271]
[1743460393692,0.30427071,604.66,603.55,0.33137271]
[1743460393887,0.30427071,604.65,603.55,0.33137271]
[1743460394093,0.30427131,604.64,603.55,0.33137271]
[1743460394293,0.30427131,604.63,603.55,0.33137271]
[1743460394490,0.30427131,604.84,603.55,0.33137271]
[1743460394690,0.30427131,604.83,603.56,1.83866381]
[1743460394891,0.30427131,604.82,603.57,0.33136173]
[1743460395088,0.30427131,604.81,603.57,0.33136173]
[1743460395288,0.30427131,604.8,603.57,0.33136173]
[1743460395493,0.30427131,604.79,603.57,0.33136173]
[1743460395789,0.30427131,604.78,603.57,0.33136173]
[1743460395989,0.30427131,604.77,603.57,0.33136173]
[1743460396190,0.30427131,604.76,603.57,0.33136173]
[1743460396394,0.28805324,604.81,603.57,0.33136173]
[1743460396395,0.30427131,604.75,603.57,0.33136173]
[1743460396592,0.30427131,604.74,603.58,2.69036576]
[1743460396797,0.30427131,604.73,603.59,0.33135075]
[1743460396998,0.30427131,604.72,603.59,0.33135075]
[1743460397398,0.30427131,604.71,603.59,0.33135075]
[1743460397595,0.30427131,604.7,603.59,0.33135075]
[1743460397799,0.30427131,604.8,603.6,2.69036576]
[1743460397995,0.30427131,604.79,603.61,0.33133977]
[1743460398197,0.30427131,604.78,603.61,0.33133977]
[1743460398400,0.30427131,604.77,603.61,0.33133977]
[1743460398902,0.30427131,604.76,603.61,0.33133977]
[1743460399201,0.30427131,604.75,603.62,2.69036576]
[1743460399403,0.30427131,604.74,603.63,0.33132879]
[1743460399602,0.30427131,604.73,603.63,0.33132879]
[1743460399798,0.30427131,604.72,603.63,0.33132879]
[1743460400102,0.30427131,604.71,603.63,0.33132879]
[1743460400299,0.30427131,604.77,603.63,0.33132879]
[1743460400498,0.30427131,604.76,603.63,0.33132879]
[1743460400701,0.30427131,604.75,603.63,3.02169455]
[1743460400898,0.28805324,604.78,603.63,3.02169455]
[1743460400899,0.30427131,604.74,603.63,3.02169455]
[1743460401112,0.30427131,604.73,603.63,3.02169455]
[1743460401299,0.30427131,604.72,603.63,3.02169455]
[1743460401505,0.30427131,604.71,603.63,3.02169455]
[1743460401800,0.30427131,604.7,603.63,3.02169455]
[1743460402001,0.28805324,604.78,603.63,0.33132879]
[1743460402198,0.30428842,604.77,603.63,0.33132879]
[1743460402402,0.30428842,604.76,603.63,0.33132879]
[1743460402603,0.30428842,604.75,603.63,0.33132879]
[1743460402803,0.30428826,604.74,603.63,0.33132879]
[1743460403008,0.30428826,604.73,603.63,0.33132879]
[1743460403204,0.30428826,604.72,603.63,0.33132879]
[1743460403503,0.30428826,604.71,603.63,0.33132879]
[1743460403703,0.30428731,604.7,603.63,0.33132879]
[1743460403898,0.30428731,604.77,603.63,0.33132879]
[1743460404103,0.30428731,604.76,603.63,0.33132879]
[1743460404302,0.30428731,604.75,603.63,0.33132879]
[1743460404501,0.30428731,604.74,603.63,0.33132879]
[1743460404706,0.30428731,604.75,603.63,0.33132879]
[1743460405006,0.30428731,604.74,603.63,0.33132879]
[1743460405204,0.30428731,604.73,603.63,0.33132879]
[1743460405407,0.30428731,604.72,603.63,0.33132879]
[1743460405705,0.30428731,604.71,603.63,0.33132879]
[1743460405906,0.30428731,604.7,603.63,0.33132879]
[1743460406407,0.30428731,604.69,603.63,0.33132879]
[1743460406607,0.30428731,604.68,603.63,0.33132879]
[1743460406802,0.28812002,604.76,603.63,0.33132879]
[1743460406803,0.30428731,604.75,603.63,0.33132879]
[1743460407006,0.28812002,604.76,603.63,0.33132879]
[1743460407007,0.30428731,604.74,603.63,0.33132879]
[1743460407307,0.30428731,604.73,603.63,0.33132879]
[1743460407608,0.30428731,604.72,603.63,0.33132879]
[1743460408506,0.2880902,604.73,603.63,0.33132879]
[1743460408507,0.30427833,604.71,603.63,0.33132879]
[1743460408706,0.30427833,604.72,603.63,0.33132879]
[1743460408905,0.30427833,604.71,603.63,0.33132879]
[1743460409207,0.30427833,604.7,603.63,0.33132879]
[1743460409409,0.30427833,604.69,603.63,0.33132879]
[1743460409710,0.2880902,604.73,603.63,0.33132879]
[1743460409711,0.30427833,604.68,603.63,0.33132879]
[1743460409906,0.30427833,604.72,603.63,0.33132879]
[1743460410106,0.30427833,604.71,603.63,0.33132879]
[1743460410307,0.30427833,604.86,603.63,0.33132879]
[1743460410508,0.28808662,604.71,603.63,0.33132879]
[1743460410808,0.30427833,604.7,603.63,0.33132879]
[1743460411003,0.30427833,604.69,603.63,0.33132879]
[1743460413409,0.30427833,604.86,603.63,0.33132879]
[1743460413610,0.28809259,604.68,603.63,0.33132879]
[1743460413810,0.30427833,604.67,603.63,0.33132879]
[1743460414212,0.28811167,604.66,603.63,0.33132879]
[1743460414612,0.30427833,604.65,603.63,0.33132879]
[1743460416418,0.30427833,604.86,603.63,0.33132879]
[1743460416612,0.28810332,604.64,603.63,0.33132879]
[1743460416810,0.30427833,604.63,603.63,0.33132879]
[1743460417312,0.59240908,604.62,603.63,0.33132879]
[1743460417516,0.30427833,604.61,603.63,0.33132879]
[1743460418016,0.28813075,604.62,603.63,0.33132879]
[1743460418219,0.30429153,604.61,603.63,0.33132879]
[1743460419418,0.5924199,604.6,603.63,0.33132879]
[1743460419618,0.30429153,604.59,603.63,0.33132879]
[1743460422320,0.30429153,604.86,603.63,0.33132879]
[1743460422520,0.30429153,604.85,603.63,0.33132879]
[1743460422720,0.30429153,604.84,603.63,0.33132879]
[1743460422920,0.30429153,604.83,603.63,0.33132879]
[1743460423121,0.30429153,604.82,603.63,0.33132879]
[1743460423321,0.30429153,604.84,603.63,0.33132879]
[1743460423622,0.30429153,604.83,603.63,0.33132879]
[1743460423821,0.30429153,604.82,603.63,0.33132879]
[1743460424024,0.30429153,604.84,603.63,0.33132879]
[1743460424223,0.30429153,604.83,603.63,0.33132879]
[1743460424419,0.30429153,604.84,603.63,0.33132879]
[1743460424618,0.30429153,604.83,603.63,0.33132879]
[1743460424823,0.30429153,604.84,603.63,0.33132879]
[1743460425021,0.30429153,604.83,603.63,0.33132879]
[1743460425218,0.30429153,604.82,603.63,0.33132879]
[1743460425422,0.30428019,604.81,603.63,0.33132879]
[1743460425625,0.30428019,604.8,603.64,2.69036576]
[1743460425826,0.30428019,604.79,603.65,0.33131781]
[1743460426123,0.30427991,604.78,603.65,0.33131781]
[1743460426329,0.30427991,604.77,603.65,0.33131781]
[1743460426624,0.30427991,604.76,603.65,0.33131781]
[1743460426832,0.30427991,604.75,603.65,0.33131781]
[1743460427029,0.30427991,604.74,603.65,3.02168357]
[1743460427229,0.30427991,604.73,603.65,3.02168357]
[1743460427430,0.30427991,604.72,603.65,3.02168357]
[1743460427724,0.30427991,604.71,603.65,3.02168357]
[1743460427930,0.30427991,604.84,603.65,3.02168357]
[1743460428233,0.30427991,604.83,603.65,0.33131781]
[1743460428433,0.30427991,604.82,603.65,0.33131781]
[1743460428625,0.30427991,604.81,603.65,0.33131781]
[1743460428828,0.30427991,604.8,603.65,0.33131781]
[1743460429025,0.30427991,604.79,603.65,0.33131781]
[1743460429226,0.30427991,604.78,603.65,0.33131781]
[1743460429426,0.30427991,604.77,603.65,0.33131781]
[1743460429630,0.30427991,604.76,603.66,2.69036576]
[1743460429825,0.30427991,604.75,603.67,0.33130683]
[1743460430026,0.30427991,604.74,603.67,0.33130683]
[1743460430332,0.30427991,604.73,603.67,0.33130683]
[1743460430530,0.30427991,604.72,603.67,0.33130683]
[1743460430730,0.30427991,604.71,603.67,0.33130683]
[1743460430932,0.28806159,604.82,603.67,0.33130683]
[1743460431127,0.30428054,604.81,603.67,0.33130683]
[1743460431329,0.30428054,604.8,603.67,0.33130683]
[1743460431526,0.30428054,604.79,603.67,0.33130683]
[1743460431727,0.30428054,604.78,603.67,0.33130683]
[1743460431931,0.30428054,604.79,603.67,0.33130683]
[1743460432132,0.30428054,604.78,603.67,0.33130683]
[1743460432332,0.30428054,604.77,603.67,0.33130683]
[1743460432533,0.30428054,604.79,603.67,0.33130683]
[1743460432727,1.128,604.76,603.67,0.33130683]
[1743460432933,0.30428054,604.75,603.67,0.33130683]
[1743460434336,0.30425121,604.74,603.67,0.33130683]
[1743460434634,0.30425121,604.73,603.67,0.33130683]
[1743460437529,0.59238315,604.72,603.67,0.33130683]
[1743460437732,0.30425121,604.71,603.67,0.33130683]
[1743460438132,0.28813194,604.72,603.67,0.33130683]
[1743460438335,0.30425655,604.71,603.67,0.33130683]
[1743460440439,0.28813791,604.7,603.67,0.33130683]
[1743460440938,0.30425597,604.69,603.67,0.33130683]
[1743460443438,0.59237957,604.68,603.67,0.33130683]
[1743460443633,0.30425597,604.67,603.67,0.33130683]
[1743460445336,0.30423094,604.66,603.67,0.33130683]
[1743460445535,0.30423094,604.67,603.67,0.33130683]
[1743460445842,0.30423094,604.66,603.67,0.33130683]
[1743460446140,0.30423094,604.65,603.67,0.33130683]
[1743460446343,0.30423094,604.75,603.67,0.33130683]
[1743460446641,1.128,604.76,603.67,0.33130683]
[1743460446642,0.28808424,604.64,603.67,0.33130683]
[1743460447035,1.128,604.76,603.67,0.33130683]
[1743460447036,0.3042332,604.63,603.67,0.33130683]
[1743460447236,0.28808066,604.63,603.67,0.33130683]
[1743460447440,0.3042332,604.62,603.67,0.33130683]
[1743460448237,0.3042332,604.62,603.68,2.69036576]
[1743460448544,0.3042332,604.62,603.69,0.33129586]
[1743460449442,0.59228167,604.61,603.69,0.33129586]
[1743460449642,0.3042332,604.6,603.7,2.69036576]
[1743460449846,0.3042332,604.6,603.71,0.33128488]
[1743460450242,0.28804847,604.61,603.71,0.33128488]
[1743460450442,0.3042323,604.6,603.71,0.33128488]
[1743460450841,0.30422987,604.59,603.71,0.33128488]
[1743460451142,0.28804847,604.61,603.71,0.33128488]
[1743460451143,0.30422987,604.58,603.71,0.33128488]
[1743460451339,0.30422987,604.57,603.71,0.33128488]
[1743460451535,0.30422987,604.6,603.71,0.33128488]
[1743460451740,0.30422987,604.59,603.71,0.33128488]
[1743460451937,0.30422987,604.6,603.71,0.33128488]
[1743460452342,0.30422987,604.75,603.71,0.33128488]
[1743460452642,0.28804847,604.59,603.71,0.33128488]
[1743460452843,0.30422987,604.58,603.71,0.33128488]
[1743460453242,0.28804847,604.58,603.71,0.33128488]
[1743460453439,0.30422987,604.57,603.71,0.33128488]
[1743460455439,0.30422987,604.56,603.71,0.33128488]
[1743460455645,0.30422987,604.55,603.71,0.33128488]
[1743460456845,0.28805682,604.56,603.71,0.33128488]
[1743460457041,0.3042418,604.55,603.71,0.33128488]
[1743460457740,0.985,604.54,603.71,0.33128488]
[1743460457941,0.3042418,604.53,603.71,0.33128488]
[1743460458741,0.28809378,604.52,603.71,0.33128488]
[1743460458941,0.3042418,604.51,603.71,0.33128488]
[1743460464346,0.3042418,604.5,603.71,0.33128488]
[1743460464547,0.28809736,604.5,603.71,0.33128488]
[1743460464743,0.3042418,604.49,603.71,0.33128488]
[1743460464943,0.28809736,604.5,603.71,0.33128488]
[1743460465143,0.30423954,604.49,603.71,0.33128488]
[1743460467450,0.2880902,604.48,603.71,0.33128488]
[1743460468243,0.3042439,604.47,603.71,0.33128488]
[1743460468449,0.2880902,604.48,603.71,0.33128488]
[1743460468649,0.30423953,604.47,603.71,0.33128488]
[1743460471445,0.30424194,604.46,603.71,0.33128488]
[1743460471646,0.30424194,604.45,603.71,0.33128488]
[1743460471846,0.30424194,604.47,603.71,0.33128488]
[1743460472046,0.2880902,604.48,603.71,0.33128488]
[1743460472245,0.30424156,604.47,603.71,0.33128488]
[1743460474756,0.2880902,604.48,603.71,0.33128488]
[1743460475056,0.30423449,604.47,603.71,0.33128488]
[1743460476356,0.985,604.54,603.71,0.33128488]
[1743460476551,0.30423732,604.53,603.71,0.33128488]
[1743460476755,0.28807589,604.46,603.71,0.33128488]
[1743460477052,0.985,604.54,603.71,0.33128488]
[1743460477258,0.28806993,604.45,603.71,0.33128488]
[1743460477656,0.985,604.54,603.71,0.33128488]
[1743460477957,0.28806993,604.45,603.71,0.33128488]
[1743460478157,0.985,604.54,603.71,0.33128488]
[1743460478352,0.30423782,604.53,603.71,0.33128488]
[1743460478558,0.28806993,604.45,603.71,0.33128488]
[1743460478750,0.985,604.54,603.71,0.33128488]
[1743460479155,0.28806516,604.47,603.71,0.33128488]
[1743460483256,0.9,604.46,603.71,0.33128488]
[1743460489563,0.9,604.46,603.72,2.69036576]
[1743460489764,0.9,604.46,603.73,0.33127391]
[1743460490961,0.9,604.46,603.74,2.69036576]
[1743460491163,0.9,604.46,603.75,0.33126293]
[1743460491967,0.9,604.46,603.75,3.02162869]
[1743460493666,0.9,604.46,603.75,0.33126293]
[1743460496073,0.08630541,604.46,603.75,0.33126293]
[1743460496266,0.28801867,604.8,603.75,0.33126293]
[1743460497265,2.51031067,605.54,603.75,0.33126293]
[1743460497470,0.30402225,605.53,603.75,0.33126293]
[1743460497672,0.28786381,604.87,603.75,0.33126293]
[1743460497969,2.51031067,605.65,603.75,0.33126293]
[1743460498173,0.28787453,604.86,603.75,0.33126293]
[1743460498570,2.51031067,605.65,603.75,0.33126293]
[1743460498770,0.28787334,604.85,603.75,0.33126293]
[1743460499170,1.41680504,605.64,603.75,0.33126293]
[1743460499466,0.28786976,604.84,603.75,0.33126293]
[1743460499671,0.33022917,605.64,603.75,0.33126293]
[1743460499873,0.30405387,605.63,603.75,0.33126293]
[1743460500073,0.28788405,604.83,603.75,0.33126293]
[1743460500270,0.33024008,605.62,603.75,0.33126293]
[1743460500469,0.3040794,605.61,603.75,0.33126293]
[1743460500674,0.28789358,604.82,603.75,0.33126293]
[1743460500872,0.33025099,605.6,603.75,0.33126293]
[1743460501072,0.30408848,605.59,603.75,0.33126293]
[1743460501273,0.2879174,604.81,603.75,0.33126293]
[1743460501476,0.33026189,605.58,603.75,0.33126293]
[1743460501871,0.28792097,604.8,603.75,0.33126293]
[1743460502075,0.33026189,605.58,603.75,0.33126293]
[1743460502270,0.30409374,605.57,603.75,0.33126293]
[1743460502473,0.28795313,604.79,603.75,0.33126293]
[1743460502675,0.3302728,605.56,603.75,0.33126293]
[1743460502870,0.30409348,605.55,603.75,0.33126293]
[1743460503075,0.28795552,604.78,603.75,0.33126293]
[1743460503274,0.33028371,605.54,603.75,0.33126293]
[1743460503470,0.30409004,605.53,603.75,0.33126293]
[1743460503770,0.28796028,604.77,603.75,0.33126293]
[1743460504077,0.30409004,605.52,603.75,0.33126293]
[1743460504078,0.33028371,605.54,603.75,0.33126293]
[1743460504276,0.28796266,604.76,603.75,0.33126293]
[1743460504479,0.33028371,605.54,603.75,0.33126293]
[1743460504884,0.28799245,604.75,603.75,0.33126293]
[1743460505184,0.3041336,604.74,603.75,0.33126293]
[1743460505384,0.3041336,604.73,603.75,0.33126293]
[1743460505684,0.3041336,604.72,603.75,0.33126293]
[1743460505884,0.3041336,604.71,603.75,0.33126293]
[1743460506084,0.3041336,604.73,603.75,0.33126293]
[1743460506278,0.3041336,604.72,603.75,0.33126293]
[1743460506477,0.28809736,604.7,603.75,0.33126293]
[1743460506684,0.3041336,604.69,603.75,0.33126293]
[1743460509487,0.28809736,604.68,603.75,0.33126293]
[1743460509683,0.59223096,604.68,603.75,0.33126293]
[1743460509988,0.30419315,604.67,603.75,0.33126293]
[1743460510987,0.3042392,604.66,603.75,0.33126293]
[1743460511188,0.3042392,604.67,603.75,0.33126293]
[1743460511588,0.30424301,604.66,603.75,0.33126293]
[1743460511788,0.30424301,604.65,603.75,0.33126293]
[1743460511986,0.30424301,604.67,603.75,0.33126293]
[1743460512189,0.30424301,604.66,603.75,0.33126293]
[1743460512389,0.30424301,605.49,603.75,0.33126293]
[1743460512587,0.30424301,604.65,603.75,0.33126293]
[1743460512786,0.30424301,604.64,603.75,0.33126293]
[1743460512983,0.30424301,604.63,603.75,0.33126293]
[1743460513188,0.30424301,604.62,603.75,0.33126293]
[1743460513384,0.30424301,604.63,603.75,0.33126293]
[1743460513583,0.30424301,604.62,603.75,0.33126293]
[1743460513788,0.30424301,604.61,603.75,0.33126293]
[1743460513984,0.30424301,604.6,603.75,0.33126293]
[1743460514290,0.30424301,604.59,603.75,0.33126293]
[1743460514485,0.30424301,604.63,603.75,0.33126293]
[1743460514688,0.28813433,604.64,603.75,0.33126293]
[1743460514887,0.30425798,604.63,603.75,0.33126293]
[1743460515482,0.288157,604.62,603.75,0.33126293]
[1743460515888,0.30425798,604.61,603.75,0.33126293]
[1743460518485,0.59243407,604.6,603.75,0.33126293]
[1743460518685,0.30425798,604.59,603.75,0.33126293]
[1743460521389,0.30425798,605.46,603.75,0.33126293]
[1743460521585,0.28818324,604.58,603.75,0.33126293]
[1743460521785,0.30425798,604.57,603.75,0.33126293]
[1743460521985,0.30425798,605.43,603.75,0.33126293]
[1743460522190,0.28808305,604.57,603.75,0.33126293]
[1743460522593,0.33035463,605.41,603.75,0.33126293]
[1743460522790,0.28808662,604.56,603.75,0.33126293]
[1743460523191,0.33035463,605.41,603.75,0.33126293]
[1743460523493,0.28808782,604.55,603.75,0.33126293]
[1743460523693,0.33035463,605.41,603.75,0.33126293]
[1743460523987,0.28808782,604.54,603.75,0.33126293]
[1743460524194,0.30425279,604.53,603.75,0.33126293]
[1743460524594,0.30425279,604.52,603.75,0.33126293]
[1743460527391,0.30425279,605.39,603.75,0.33126293]
[1743460527699,0.28816296,604.51,603.75,0.33126293]
[1743460527995,0.30425279,604.5,603.75,0.33126293]
[1743460528193,0.2880592,604.5,603.75,0.33126293]
[1743460528397,0.30425279,604.49,603.75,0.33126293]
[1743460529195,0.30425271,604.48,603.75,0.33126293]
[1743460529395,0.30425271,604.49,603.75,0.33126293]
[1743460529594,0.30425271,604.48,603.75,0.33126293]
[1743460529795,0.30425271,604.49,603.75,0.33126293]
[1743460529994,0.30425271,604.48,603.75,0.33126293]
[1743460530195,0.30425271,604.49,603.75,0.33126293]
[1743460530391,0.30425271,604.48,603.75,0.33126293]
[1743460530593,0.30425271,604.49,603.75,0.33126293]